[Event "17th Memorial Lezcano Montalvo 2025"]
[Site "Gran Canaria"]
[Date "2025.04.19"]
[Round "8.26"]
[White "Rodriguez Melian, Jose Luis"]
[Black "Marrero Rodriguez, Jorge"]
[Result "0-1"]
[Annotator "RC"]
[ECO "D30"]
[WhiteElo "2029"]
[BlackElo "2251"]
[PlyCount "138"]
[EventDate "2025.04.13"]
[EventType "swiss"]
[EventCountry "ESP"]
[SourceTitle "playchess.com"]
[Source "ChessBase"]
[SourceQuality "1"]
[TimeControl "5400+30"]

1. d4 {[%emt 0:00:27]} d5 {[%emt 0:00:14]} 2. c4 {[%emt 0:00:10]} e6 {[%emt 0:00:05]} 3. Nf3 {[%emt 0:00:06]} Nf6 {[%emt 0:00:05]} 4. Qc2 {[%emt 0:00:09]} dxc4 {[%emt 0:11:44]} 5. Qxc4 {[%emt 0:02:30]} a6 {[%emt 0:01:15]} 6. Bf4 {[%emt 0:01:51]} Bd6 {[%emt 0:00:43]} 7. Bxd6 {[%emt 0:00:09]} cxd6 {[%emt 0:00:16]} 8. e3 {[%emt 0:07:57]} O-O {[%emt 0:01:13]} 9. Be2 {[%emt 0:01:36]} b5 {[%emt 0:00:59]} 10. Qc2 {[%emt 0:04:30]} Bb7 {[%emt 0:00:21]} 11. O-O {[%emt 0:03:12]} Nbd7 {[%emt 0:00:14]} 12. Nbd2 {[%emt 0:07:26]} Rc8 {[%emt 0:01:09]} 13. Qb1 {[%emt 0:00:02]} e5 {[%emt 0:09:29]} 14. Rc1 {[%emt 0:00:10]} Qa5 {[%emt 0:02:49]} 15. Nb3 {[%emt 0:01:51]} Qb6 {[%emt 0:04:39]} 16. Rxc8 {[%emt 0:01:55]} Rxc8 {[%emt 0:00:45]} 17. Qd1 {[%emt 0:00:56]} a5 {[%emt 0:12:45]} 18. Rc1 {[%emt 0:00:42]} Rxc1 {[%emt 0:02:52]} 19. Qxc1 {[%emt 0:01:24]} g6 {[%emt 0:02:22]} 20. dxe5 {[%emt 0:08:58]} dxe5 {[%emt 0:00:13]} 21. Qc3 {[%emt 0:03:00]} b4 {[%emt 0:00:36]} 22. Qc2 {[%emt 0:03:08]} Kg7 {[%emt 0:03:29]} 23. Nbd2 {[%emt 0:02:58]} Bd5 {[%emt 0:02:08]} 24. Bc4 {[%emt 0:05:55]} Qc7 {[%emt 0:02:54]} 25. b3 {[%emt 0:00:11]} Nb6 {[%emt 0:00:58]} 26. Qb2 {[%emt 0:11:18]} Bxc4 {[%emt 0:02:53]} 27. Nxc4 {[%emt 0:00:37]} Nxc4 {[%emt 0:00:49]} 28. bxc4 {[%emt 0:00:02]} Nd7 {[%emt 0:05:02]} 29. g3 {[%emt 0:00:50]} f6 {[%emt 0:02:19]} 30. Qd2 {[%emt 0:00:06]} Nb6 {[%emt 0:00:42]} 31. h4 {[%emt 0:10:23]} Nxc4 {[%emt 0:00:33]} 32. Qd5 {[%emt 0:00:01]} Nd6 {[%emt 0:01:25]} 33. h5 {[%emt 0:00:43]} Nf7 {[%emt 0:00:10]} 34. hxg6 {[%emt 0:00:21]} hxg6 {[%emt 0:00:05]} 35. Nh4 {[%emt 0:01:02]} Qb6 {[%emt 0:02:08]} 36. Qa8 {[%emt 0:02:57]} f5 {[%emt 0:01:43]} 37. Qe8 {[%emt 0:02:42]} Qd8 {[%emt 0:01:09]} 38. Qe6 {[%emt 0:00:04]} Qd6 {[%emt 0:00:37]} 39. Qe8 {[%emt 0:00:29]} Qd1+ {[%emt 0:00:11]} 40. Kg2 {[%emt 0:04:05]} Qd5+ {[%emt 0:00:12]} 41. Kg1 {[%emt 0:00:05]} Qxa2 {[%emt 0:00:41]} 42. Qc6 {[%emt 0:00:09]} Qb1+ {[%emt 0:02:04]} 43. Kh2 {[%emt 0:00:07]} f4 {[%emt 0:05:07]} 44. gxf4 {[%emt 0:00:40]} g5 {[%emt 0:00:20]} 45. fxg5 {[%emt 0:01:49]} Nxg5 {[%emt 0:00:27]} 46. Qd7+ {[%emt 0:03:32]} Kh6 {[%emt 0:01:48]} 47. Nf5+ {[%emt 0:00:58]} Kh5 {[%emt 0:05:32]} 48. Ng3+ {[%emt 0:01:04]} Kg6 {[%emt 0:01:52]} 49. e4 {[%emt 0:01:34]} Qc1 {[%emt 0:01:10]} 50. Qf5+ {[%emt 0:00:22]} Kh6 {[%emt 0:00:59]} 51. Qf6+ {[%emt 0:01:09]} Kh7 {[%emt 0:00:09]} 52. Qe7+ {[%emt 0:00:31]} Kg6 {[%emt 0:00:57]} 53. Qe8+ {[%emt 0:01:07]} Kh7 {[%emt 0:01:46]} 54. Qh5+ {[%emt 0:00:49]} Kg8 {[%emt 0:00:08]} 55. Qg6+ {[%emt 0:00:14]} Kf8 {[%emt 0:00:13]} 56. Qd6+ {[%emt 0:01:10]} Kf7 {[%emt 0:00:19]} 57. Qd7+ {[%emt 0:00:12]} Kf8 {[%emt 0:00:36]} 58. Qf5+ {[%emt 0:00:28]} Nf7 {[%emt 0:00:41]} 59. Qd7 {[%emt 0:00:56]} b3 {[%emt 0:01:25]} 60. Nf5 {[%emt 0:00:09]} Qf4+ {[%emt 0:00:12]} 61. Kg1 {[%emt 0:00:12]} Qg5+ {[%emt 0:00:12]} 62. Kf1 {[%emt 0:00:09]} b2 {[%emt 0:04:32]} 63. Qc8+ {[%emt 0:00:55]} Qd8 {[%emt 0:00:05]} 64. Qc5+ {[%emt 0:02:17]} Kg8 {[%emt 0:00:08]} 65. Qc2 {[%emt 0:00:40]} Qb8 {[%emt 0:00:11]} 66. Qb1 {[%emt 0:00:07]} a4 {[%emt 0:00:13]} 67. Ke2 {[%emt 0:00:28]} Qb5+ {[%emt 0:01:06]} 68. Kf3 {[%emt 0:02:20]} Qb3+ {[%emt 0:00:14]} 69. Ne3 {[%emt 0:00:59]} Kf8 {[%emt 0:00:47]} 0-1

[Event "17th Memorial Lezcano Montalvo 2025"]
[Site "Gran Canaria"]
[Date "2025.04.19"]
[Round "8.26"]
[White "Henriquez Garcia, David"]
[Black "Bethencourt Hernandez, Alberto"]
[Result "*"]
[Annotator "NA"]
[ECO "D30"]
[WhiteElo "1869"]
[BlackElo "2122"]
[PlyCount "20"]
[EventDate "2025.04.13"]
[EventType "swiss"]
[EventCountry "ESP"]
[SourceTitle "playchess.com"]
[Source "ChessBase"]
[SourceQuality "1"]
[TimeControl "5400+30"]

1. d4 {[%emt 0:00:27]} d5 {[%emt 0:00:14]} 2. c4 {[%emt 0:00:10]} e6 {[%emt 0:00:05]} 3. Nf3 {[%emt 0:00:06]} Nf6 {[%emt 0:00:05]} 4. Qc2 {[%emt 0:00:09]} dxc4 {[%emt 0:11:44]} 5. Qxc4 {[%emt 0:02:30]} a6 {[%emt 0:01:15]} 6. Bf4 {[%emt 0:01:51]} Bd6 {[%emt 0:00:43]} 7. Bxd6 {[%emt 0:00:09]} cxd6 {[%emt 0:00:16]} 8. e3 {[%emt 0:07:57]} O-O {[%emt 0:01:13]} 9. Be2 {[%emt 0:01:36]} b5 {[%emt 0:00:59]} 10. Qc2 {[%emt 0:04:30]} Bb7 {[%emt 0:00:21]} *

[Event "17th Memorial Lezcano Montalvo 2025"]
[Site "Gran Canaria"]
[Date "2025.04.19"]
[Round "8.27"]
[White "Murashkin, Roman G"]
[Black "Rodriguez Avila, Alvaro"]
[Result "0-1"]
[Annotator "RC"]
[ECO "A45"]
[WhiteElo "2129"]
[BlackElo "2212"]
[PlyCount "114"]
[EventDate "2025.04.13"]
[EventType "swiss"]
[EventCountry "ESP"]
[SourceTitle "playchess.com"]
[Source "ChessBase"]
[SourceQuality "1"]
[TimeControl "5400+30"]

1. d4 {[%emt 0:00:01]} Nf6 {[%emt 0:00:11]} 2. Bg5 {[%emt 0:00:09]} c5 {[%emt 0:02:41]} 3. Bxf6 {[%emt 0:00:12]} gxf6 {[%emt 0:00:13]} 4. e3 {[%emt 0:01:33]} Qb6 {[%emt 0:03:43]} 5. Nc3 {[%emt 0:01:58]} cxd4 {[%emt 0:05:18]} 6. exd4 {[%emt 0:04:47]} e6 {[%emt 0:00:46]} 7. Rb1 {[%emt 0:03:28]} d5 {[%emt 0:02:48]} 8. a3 {[%emt 0:03:04]} Nc6 {[%emt 0:00:24]} 9. Bb5 {[%emt 0:02:22]} Bd6 {[%emt 0:03:12]} 10. Nf3 {[%emt 0:02:24]} O-O {[%emt 0:00:20]} 11. Qd2 {[%emt 0:01:52]} Kg7 {[%emt 0:03:34]} 12. O-O {[%emt 0:11:21]} Rg8 {[%emt 0:02:15]} 13. Rfe1 {[%emt 0:05:17]} Bd7 {[%emt 0:01:45]} 14. Bf1 {[%emt 0:05:40]} Kh8 {[%emt 0:00:43]} 15. Qh6 {[%emt 0:03:24]} Rg6 {[%emt 0:00:41]} 16. Qh4 {[%emt 0:01:00]} Rag8 {[%emt 0:00:58]} 17. g3 {[%emt 0:01:36]} f5 {[%emt 0:01:03]} 18. Nb5 {[%emt 0:02:49]} Be7 {[%emt 0:00:42]} 19. Qf4 {[%emt 0:01:35]} Rg4 {[%emt 0:02:44]} 20. Qd2 {[%emt 0:02:52]} a6 {[%emt 0:00:37]} 21. Nc3 {[%emt 0:01:59]} Nxd4 {[%emt 0:00:17]} 22. Ne5 {[%emt 0:01:16]} Be8 {[%emt 0:02:45]} 23. Be2 {[%emt 0:03:41]} R4g7 {[%emt 0:01:09]} 24. Kh1 {[%emt 0:00:59]} Nc6 {[%emt 0:00:14]} 25. Nd3 {[%emt 0:03:20]} Bg5 {[%emt 0:01:14]} 26. f4 {[%emt 0:00:39]} Bf6 {[%emt 0:00:07]} 27. Bf3 {[%emt 0:01:05]} Nd4 {[%emt 0:00:25]} 28. Qe3 {[%emt 0:02:46]} Qc7 {[%emt 0:02:55]} 29. Ne2 {[%emt 0:05:00]} Nxf3 {[%emt 0:05:03]} 30. Qxf3 {[%emt 0:00:09]} Qxc2 {[%emt 0:00:09]} 31. Rec1 {[%emt 0:02:14]} Qb3 {[%emt 0:00:09]} 32. Nc3 {[%emt 0:02:41]} d4 {[%emt 0:02:33]} 33. Nc5 {[%emt 0:03:12]} Qc4 {[%emt 0:00:40]} 34. Ne2 {[%emt 0:01:19]} Qxc1+ {[%emt 0:00:11]} 35. Rxc1 {[%emt 0:01:29]} Bc6 {[%emt 0:00:05]} 36. Qxc6 {[%emt 0:00:24]} bxc6 {[%emt 0:00:04]} 37. Nd7 {[%emt 0:01:36]} Rg6 {[%emt 0:01:43]} 38. Nxf6 {[%emt 0:00:35]} Rxf6 {[%emt 0:00:04]} 39. Nxd4 {[%emt 0:00:14]} Rd8 {[%emt 0:03:48]} 40. Nf3 {[%emt 0:01:04]} e5 {[%emt 0:02:15]} 41. fxe5 {[%emt 0:01:19]} Re6 {[%emt 0:00:12]} 42. Ng5 {[%emt 0:00:17]} Re7 {[%emt 0:01:19]} 43. Rxc6 {[%emt 0:00:42]} Rd2 {[%emt 0:00:49]} 44. Rxa6 {[%emt 0:05:26]} Rc7 {[%emt 0:00:29]} 45. Nxf7+ {[%emt 0:01:42]} Rxf7 {[%emt 0:00:42]} 46. Rc6 {[%emt 0:00:48]} Rxb2 {[%emt 0:00:16]} 47. e6 {[%emt 0:00:53]} Re7 {[%emt 0:00:07]} 48. a4 {[%emt 0:01:27]} Re2 {[%emt 0:00:48]} 49. Rc5 {[%emt 0:00:27]} R7xe6 {[%emt 0:00:13]} 50. Rxf5 {[%emt 0:00:23]} Rc6 {[%emt 0:00:06]} 51. Rf1 {[%emt 0:00:27]} Rcc2 {[%emt 0:00:05]} 52. Rd1 {[%emt 0:00:18]} Rxh2+ {[%emt 0:00:06]} 53. Kg1 {[%emt 0:00:08]} Rhg2+ {[%emt 0:00:07]} 54. Kh1 {[%emt 0:00:28]} Rgd2 {[%emt 0:00:07]} 55. Re1 {[%emt 0:00:20]} Ra2 {[%emt 0:00:07]} 56. g4 {[%emt 0:00:25]} Rxa4 {[%emt 0:00:06]} 57. g5 {[%emt 0:00:14]} Kg7 {[%emt 0:00:05]} 0-1

[Event "17th Memorial Lezcano Montalvo 2025"]
[Site "Gran Canaria"]
[Date "2025.04.19"]
[Round "8.27"]
[White "Halldorsson, Halldor"]
[Black "Gonzalez Perdomo, Sergio"]
[Result "*"]
[Annotator "NA"]
[ECO "A45"]
[WhiteElo "2103"]
[BlackElo "1880"]
[PlyCount "21"]
[EventDate "2025.04.13"]
[EventType "swiss"]
[EventCountry "ESP"]
[SourceTitle "playchess.com"]
[Source "ChessBase"]
[SourceQuality "1"]
[TimeControl "5400+30"]

1. d4 {[%emt 0:00:01]} Nf6 {[%emt 0:00:11]} 2. Bg5 {[%emt 0:00:09]} c5 {[%emt 0:02:41]} 3. Bxf6 {[%emt 0:00:12]} gxf6 {[%emt 0:00:13]} 4. e3 {[%emt 0:01:33]} Qb6 {[%emt 0:03:43]} 5. Nc3 {[%emt 0:01:58]} cxd4 {[%emt 0:05:18]} 6. exd4 {[%emt 0:04:47]} e6 {[%emt 0:00:46]} 7. Rb1 {[%emt 0:03:28]} d5 {[%emt 1:21:08]} 8. a3 {[%emt 0:03:04]} Nc6 {[%emt 1:18:50]} 9. Bb5 {[%emt 0:02:22]} Bd6 {[%emt 0:03:12]} 10. Nf3 {[%emt 0:02:24]} O-O {[%emt 0:00:20]} 11. Qd2 {[%emt 0:01:52]} *

[Event "17th Memorial Lezcano Montalvo 2025"]
[Site "Gran Canaria"]
[Date "2025.04.19"]
[Round "8.28"]
[White "Paquico Rodriguez, Ivan"]
[Black "Garcia Rodriguez, Adriana"]
[Result "1-0"]
[Annotator "RC"]
[ECO "D04"]
[WhiteElo "2202"]
[BlackElo "1893"]
[PlyCount "87"]
[EventDate "2025.04.13"]
[EventType "swiss"]
[EventCountry "ESP"]
[SourceTitle "playchess.com"]
[Source "ChessBase"]
[SourceQuality "1"]
[TimeControl "5400+30"]

1. Nf3 {[%emt 0:01:20]} d5 {[%emt 0:00:35]} 2. b3 {[%emt 0:00:43]} c5 {[%emt 0:00:35]} 3. e3 {[%emt 0:00:36]} Nc6 {[%emt 0:01:11]} 4. Bb2 {[%emt 0:00:12]} Nf6 {[%emt 0:00:32]} 5. d4 {[%emt 0:00:57]} Bg4 {[%emt 0:01:50]} 6. Be2 {[%emt 0:04:44]} Bxf3 {[%emt 0:05:09]} 7. Bxf3 {[%emt 0:00:27]} cxd4 {[%emt 0:00:06]} 8. exd4 {[%emt 0:00:42]} e6 {[%emt 0:01:17]} 9. O-O {[%emt 0:01:56]} Bd6 {[%emt 0:01:44]} 10. c4 {[%emt 0:05:37]} O-O {[%emt 0:02:51]} 11. g3 {[%emt 0:09:49]} Rc8 {[%emt 0:04:29]} 12. Nd2 {[%emt 0:06:23]} Bb8 {[%emt 0:05:01]} 13. a3 {[%emt 0:12:37]} Qd7 {[%emt 0:08:08]} 14. Re1 {[%emt 0:03:36]} Rfd8 {[%emt 0:05:12]} 15. c5 {[%emt 0:02:23]} a5 {[%emt 0:03:00]} 16. Bc3 {[%emt 0:06:31]} Ba7 {[%emt 0:03:22]} 17. b4 {[%emt 0:02:05]} b6 {[%emt 0:53:58]} 18. b5 {[%emt 0:04:14]} Ne7 {[%emt 0:00:00]} 19. c6 {[%emt 0:00:12]} Qc7 {[%emt 0:00:00]} 20. a4 {[%emt 0:01:31]} Bb8 {[%emt 0:00:00]} 21. Bg2 {[%emt 0:02:32]} Ng6 {[%emt 0:00:00]} 22. f4 {[%emt 0:01:24]} h5 {[%emt 0:00:00]} 23. Nf1 {[%emt 0:05:24]} h4 {[%emt 0:00:00]} 24. Qd3 {[%emt 0:01:50]} Kh7 {[%emt 0:00:00]} 25. Bd2 {[%emt 0:04:01]} Rh8 {[%emt 0:00:00]} 26. f5 {[%emt 0:01:56]} exf5 {[%emt 0:00:00]} 27. Qxf5 {[%emt 0:00:53]} Kg8 {[%emt 0:00:00]} 28. Bxd5 {[%emt 0:08:09]} Nxd5 {[%emt 0:00:00]} 29. Qxd5 {[%emt 0:00:16]} hxg3 {[%emt 0:00:00]} 30. hxg3 {[%emt 0:01:04]} Rd8 {[%emt 0:00:00]} 31. Qf3 {[%emt 0:01:25]} Qc8 {[%emt 0:00:00]} 32. Rac1 {[%emt 0:02:09]} Bc7 {[%emt 0:00:00]} 33. Be3 {[%emt 0:02:17]} Qh3 {[%emt 0:00:00]} 34. Qg2 {[%emt 0:00:28]} Qg4 {[%emt 0:00:00]} 35. Rc3 {[%emt 0:01:36]} Rh3 {[%emt 0:00:00]} 36. Bf2 {[%emt 0:00:36]} Nh4 {[%emt 0:00:00]} 37. Re4 {[%emt 0:00:39]} Nxg2 {[%emt 0:00:00]} 38. Rxg4 {[%emt 0:00:04]} Nf4 {[%emt 0:00:00]} 39. Rxf4 {[%emt 0:00:56]} Bxf4 {[%emt 0:00:00]} 40. Kg2 {[%emt 0:00:02]} Bxg3 {[%emt 0:00:00]} 41. Bxg3 {[%emt 0:00:10]} Rh6 {[%emt 0:00:00]} 42. c7 {[%emt 0:00:27]} Rc8 {[%emt 0:00:00]} 43. d5 {[%emt 0:00:12]} Kf8 {[%emt 0:00:00]} 44. Re3 {[%emt 0:00:08]} 1-0

[Event "17th Memorial Lezcano Montalvo 2025"]
[Site "Gran Canaria"]
[Date "2025.04.19"]
[Round "8.28"]
[White "Sukhodolskyi, Oleksii"]
[Black "Ludishev, Artem"]
[Result "*"]
[Annotator "NA"]
[ECO "D04"]
[WhiteElo "2070"]
[BlackElo "1874"]
[PlyCount "20"]
[EventDate "2025.04.13"]
[EventType "swiss"]
[EventCountry "ESP"]
[SourceTitle "playchess.com"]
[Source "ChessBase"]
[SourceQuality "1"]
[TimeControl "5400+30"]

1. Nf3 {[%emt 0:01:20]} d5 {[%emt 0:00:35]} 2. b3 {[%emt 0:00:43]} c5 {[%emt 0:00:35]} 3. e3 {[%emt 0:00:36]} Nc6 {[%emt 0:01:11]} 4. Bb2 {[%emt 0:00:12]} Nf6 {[%emt 0:00:32]} 5. d4 {[%emt 0:00:57]} Bg4 {[%emt 0:01:50]} 6. Be2 {[%emt 0:04:44]} Bxf3 {[%emt 0:05:09]} 7. Bxf3 {[%emt 0:00:27]} cxd4 {[%emt 0:00:06]} 8. exd4 {[%emt 0:00:42]} e6 {[%emt 0:01:17]} 9. O-O {[%emt 0:01:56]} Bd6 {[%emt 0:01:44]} 10. c4 {[%emt 1:23:53]} O-O {[%emt 1:22:31]} *

[Event "17th Memorial Lezcano Montalvo 2025"]
[Site "Gran Canaria"]
[Date "2025.04.19"]
[Round "8.29"]
[White "Garcia Padron, Juan"]
[Black "Alonso Perez, Alfredo"]
[Result "0-1"]
[Annotator "RC"]
[ECO "C55"]
[WhiteElo "2155"]
[BlackElo "1853"]
[PlyCount "61"]
[EventDate "2025.04.13"]
[EventType "swiss"]
[EventCountry "ESP"]
[SourceTitle "playchess.com"]
[Source "ChessBase"]
[SourceQuality "1"]
[TimeControl "5400+30"]

1. e4 {[%emt 0:00:07]} e5 {[%emt 0:00:02]} 2. Nf3 {[%emt 0:00:14]} Nf6 {[%emt 0:00:06]} 3. Nc3 {[%emt 0:01:07]} Nc6 {[%emt 0:00:07]} 4. Bc4 {[%emt 0:00:19]} Nxe4 {[%emt 0:00:25]} 5. Nxe4 {[%emt 0:00:08]} d5 {[%emt 0:00:06]} 6. Bb5 {[%emt 0:01:06]} dxe4 {[%emt 0:00:46]} 7. Nxe5 {[%emt 0:04:37]} Qd5 {[%emt 0:11:06]} 8. Bxc6+ {[%emt 0:03:23]} bxc6 {[%emt 0:00:45]} 9. Ng4 {[%emt 0:00:02]} Ba6 {[%emt 0:05:55]} 10. Ne3 {[%emt 0:04:12]} Qe5 {[%emt 0:03:16]} 11. Qg4 {[%emt 0:00:16]} g6 {[%emt 0:06:40]} 12. f4 {[%emt 0:01:27]} Qd4 {[%emt 0:12:09]} 13. f5 {[%emt 0:00:22]} h5 {[%emt 0:00:23]} 14. Qh4 {[%emt 0:03:54]} Be7 {[%emt 0:00:34]} 15. Qf2 {[%emt 0:00:32]} O-O-O {[%emt 0:01:54]} 16. Rb1 {[%emt 0:01:25]} Rd7 {[%emt 0:25:03]} 17. a3 {[%emt 0:34:56]} Rhd8 {[%emt 0:01:28]} 18. b4 {[%emt 0:00:13]} Bg5 {[%emt 0:02:34]} 19. b5 {[%emt 0:04:45]} Bxb5 {[%emt 0:00:12]} 20. Rxb5 {[%emt 0:01:42]} cxb5 {[%emt 0:00:16]} 21. O-O {[%emt 0:00:10]} Bxe3 {[%emt 0:04:24]} 22. dxe3 {[%emt 0:00:07]} Qc4 {[%emt 0:03:30]} 23. fxg6 {[%emt 0:02:07]} fxg6 {[%emt 0:00:43]} 24. Qe1 {[%emt 0:02:39]} Rf7 {[%emt 0:01:09]} 25. Rxf7 {[%emt 0:00:23]} Qxf7 {[%emt 0:00:08]} 26. Bb2 {[%emt 0:06:42]} Qd5 {[%emt 0:00:59]} 27. Kf2 {[%emt 0:00:08]} Qd2+ {[%emt 0:00:28]} 28. Qxd2 {[%emt 0:00:22]} Rxd2+ {[%emt 0:00:08]} 29. Kg3 {[%emt 0:00:03]} Rxc2 {[%emt 0:01:28]} 30. Bd4 {[%emt 0:00:42]} c5 {[%emt 0:00:28]} 31. Bf6 {[%emt 0:00:04]} 0-1

[Event "17th Memorial Lezcano Montalvo 2025"]
[Site "Gran Canaria"]
[Date "2025.04.19"]
[Round "8.29"]
[White "Camino Carrio, Nicanor"]
[Black "De La Cruz Perez, Carlos"]
[Result "*"]
[Annotator "NA"]
[ECO "C55"]
[WhiteElo "2045"]
[BlackElo "1835"]
[PlyCount "21"]
[EventDate "2025.04.13"]
[EventType "swiss"]
[EventCountry "ESP"]
[SourceTitle "playchess.com"]
[Source "ChessBase"]
[SourceQuality "1"]
[TimeControl "5400+30"]

1. e4 {[%emt 0:00:07]} e5 {[%emt 0:00:02]} 2. Nf3 {[%emt 0:00:14]} Nf6 {[%emt 0:00:06]} 3. Nc3 {[%emt 0:01:07]} Nc6 {[%emt 0:00:07]} 4. Bc4 {[%emt 1:31:02]} Nxe4 {[%emt 0:00:25]} 5. Nxe4 {[%emt 0:00:08]} d5 {[%emt 0:00:06]} 6. Bb5 {[%emt 0:01:06]} dxe4 {[%emt 1:32:44]} 7. Nxe5 {[%emt 0:04:37]} Qd5 {[%emt 0:11:06]} 8. Bxc6+ {[%emt 0:03:23]} bxc6 {[%emt 0:00:45]} 9. Ng4 {[%emt 0:00:02]} Ba6 {[%emt 0:05:55]} 10. Ne3 {[%emt 0:04:12]} Qe5 {[%emt 0:03:16]} 11. Qg4 {[%emt 1:20:45]} *

[Event "17th Memorial Lezcano Montalvo 2025"]
[Site "Gran Canaria"]
[Date "2025.04.19"]
[Round "8.30"]
[White "Ramirez Maillo, Cristian"]
[Black "Castro Miguelez, Jose"]
[Result "0-1"]
[Annotator "RC"]
[ECO "B22"]
[WhiteElo "2106"]
[BlackElo "1846"]
[PlyCount "90"]
[EventDate "2025.04.13"]
[EventType "swiss"]
[EventCountry "ESP"]
[SourceTitle "playchess.com"]
[Source "ChessBase"]
[SourceQuality "1"]
[TimeControl "5400+30"]

1. e4 {[%emt 0:00:01]} c5 {[%emt 0:00:06]} 2. Nf3 {[%emt 0:00:05]} Nc6 {[%emt 0:00:10]} 3. c3 {[%emt 0:00:24]} Nf6 {[%emt 0:00:11]} 4. e5 {[%emt 0:00:05]} Nd5 {[%emt 0:00:04]} 5. Bc4 {[%emt 0:00:04]} Nb6 {[%emt 0:00:07]} 6. Bb3 {[%emt 0:00:07]} d6 {[%emt 0:00:28]} 7. exd6 {[%emt 0:01:08]} Qxd6 {[%emt 0:00:52]} 8. O-O {[%emt 0:00:34]} c4 {[%emt 0:09:52]} 9. Bc2 {[%emt 0:00:05]} Bg4 {[%emt 0:00:26]} 10. d4 {[%emt 0:02:58]} cxd3 {[%emt 0:06:19]} 11. Qxd3 {[%emt 0:00:07]} Qxd3 {[%emt 0:01:12]} 12. Bxd3 {[%emt 0:00:04]} e6 {[%emt 0:06:38]} 13. a4 {[%emt 0:01:02]} Bd6 {[%emt 0:06:22]} 14. a5 {[%emt 0:03:04]} Nd7 {[%emt 0:01:12]} 15. a6 {[%emt 0:00:22]} b6 {[%emt 0:02:00]} 16. Na3 {[%emt 0:04:17]} Rc8 {[%emt 0:03:18]} 17. Nb5 {[%emt 0:05:32]} Bb8 {[%emt 0:00:23]} 18. Ng5 {[%emt 0:13:53]} Nde5 {[%emt 0:09:19]} 19. f3 {[%emt 0:04:53]} Nxd3 {[%emt 0:02:34]} 20. fxg4 {[%emt 0:00:07]} Nxc1 {[%emt 0:02:09]} 21. Raxc1 {[%emt 0:00:15]} Ne5 {[%emt 0:02:44]} 22. h3 {[%emt 0:08:43]} Rc5 {[%emt 0:13:35]} 23. c4 {[%emt 0:07:48]} Nxc4 {[%emt 0:05:51]} 24. Nxf7 {[%emt 0:15:39]} O-O {[%emt 0:01:53]} 25. b4 {[%emt 0:01:26]} Rcc8 {[%emt 0:11:43]} 26. Ng5 {[%emt 0:01:19]} Rxf1+ {[%emt 0:03:28]} 27. Rxf1 {[%emt 0:00:19]} Ne3 {[%emt 0:00:05]} 28. Re1 {[%emt 0:03:41]} Bg3 {[%emt 0:00:26]} 29. Nf3 {[%emt 0:20:55]} Bxe1 {[%emt 0:00:55]} 30. Nxe1 {[%emt 0:00:04]} Nd5 {[%emt 0:01:38]} 31. Nd3 {[%emt 0:02:54]} Nc7 {[%emt 0:00:05]} 32. Nxc7 {[%emt 0:00:59]} Rxc7 {[%emt 0:00:10]} 33. Kf2 {[%emt 0:00:33]} Rc2+ {[%emt 0:00:27]} 34. Ke3 {[%emt 0:00:57]} Ra2 {[%emt 0:00:27]} 35. Kd4 {[%emt 0:03:01]} Rxa6 {[%emt 0:00:17]} 36. Ke5 {[%emt 0:00:12]} Kf7 {[%emt 0:00:07]} 37. Kd6 {[%emt 0:00:11]} Kf6 {[%emt 0:01:00]} 38. h4 {[%emt 0:00:15]} Ra2 {[%emt 0:01:17]} 39. Nf4 {[%emt 0:00:09]} Rd2+ {[%emt 0:00:34]} 40. Kc6 {[%emt 0:00:09]} Rd4 {[%emt 0:00:21]} 41. g5+ {[%emt 0:00:12]} Kf5 {[%emt 0:00:05]} 42. Nh5 {[%emt 0:00:07]} Kg6 {[%emt 0:00:31]} 43. Ng3 {[%emt 0:01:29]} Rxb4 {[%emt 0:00:05]} 44. Ne2 {[%emt 0:00:11]} Rxh4 {[%emt 0:00:16]} 45. g3 {[%emt 0:00:03]} Rg4 {[%emt 0:00:16]} 0-1

[Event "17th Memorial Lezcano Montalvo 2025"]
[Site "Gran Canaria"]
[Date "2025.04.19"]
[Round "8.31"]
[White "Perez Rosales, Pedro"]
[Black "Cruz Pino, Adrian"]
[Result "0-1"]
[Annotator "RC"]
[ECO "A06"]
[WhiteElo "1942"]
[BlackElo "2099"]
[PlyCount "108"]
[EventDate "2025.04.13"]
[EventType "swiss"]
[EventCountry "ESP"]
[SourceTitle "playchess.com"]
[Source "ChessBase"]
[SourceQuality "1"]
[TimeControl "5400+30"]

1. Nf3 {[%emt 0:02:01]} d5 {[%emt 0:00:11]} 2. b3 {[%emt 0:00:45]} c5 {[%emt 0:01:24]} 3. e3 {[%emt 0:01:49]} Nc6 {[%emt 0:00:24]} 4. Bb2 {[%emt 0:02:19]} f6 {[%emt 0:00:17]} 5. d4 {[%emt 0:00:27]} cxd4 {[%emt 0:00:11]} 6. exd4 {[%emt 0:00:12]} e6 {[%emt 0:02:09]} 7. Bd3 {[%emt 0:02:48]} Bd6 {[%emt 0:00:04]} 8. O-O {[%emt 0:00:08]} Nge7 {[%emt 0:00:10]} 9. a3 {[%emt 0:00:15]} O-O {[%emt 0:00:05]} 10. c4 {[%emt 0:07:57]} Bd7 {[%emt 0:00:14]} 11. Re1 {[%emt 0:01:44]} Rc8 {[%emt 0:00:23]} 12. Nc3 {[%emt 0:03:40]} Bb8 {[%emt 0:02:06]} 13. Rc1 {[%emt 0:00:43]} Bf4 {[%emt 0:01:16]} 14. Rc2 {[%emt 0:02:29]} Na5 {[%emt 0:00:47]} 15. cxd5 {[%emt 0:03:08]} exd5 {[%emt 0:06:23]} 16. h3 {[%emt 0:01:34]} Nac6 {[%emt 0:15:58]} 17. b4 {[%emt 0:02:52]} a6 {[%emt 0:05:30]} 18. Rce2 {[%emt 0:09:44]} Be8 {[%emt 0:03:22]} 19. Qb3 {[%emt 0:09:06]} b5 {[%emt 0:06:36]} 20. Qc2 {[%emt 0:09:17]} g6 {[%emt 0:03:52]} 21. Qd1 {[%emt 0:00:41]} Bf7 {[%emt 0:00:18]} 22. Bc2 {[%emt 0:01:10]} Re8 {[%emt 0:01:27]} 23. Bb3 {[%emt 0:00:18]} Qd7 {[%emt 0:01:01]} 24. Qb1 {[%emt 0:00:50]} Rb8 {[%emt 0:11:24]} 25. Qa2 {[%emt 0:03:04]} a5 {[%emt 0:00:48]} 26. Nxd5 {[%emt 0:00:56]} Nxd5 {[%emt 0:06:20]} 27. Rxe8+ {[%emt 0:00:19]} Rxe8 {[%emt 0:00:13]} 28. Rxe8+ {[%emt 0:00:09]} Kg7 {[%emt 0:00:38]} 29. Re1 {[%emt 0:07:01]} a4 {[%emt 0:01:31]} 30. Bc2 {[%emt 0:02:13]} Ndxb4 {[%emt 0:03:04]} 31. Qb1 {[%emt 0:00:11]} Nxc2 {[%emt 0:00:07]} 32. Qxc2 {[%emt 0:00:17]} Bd5 {[%emt 0:00:02]} 33. Nd2 {[%emt 0:04:26]} Bb8 {[%emt 0:05:48]} 34. Nf1 {[%emt 0:00:32]} Ba7 {[%emt 0:04:27]} 35. Rd1 {[%emt 0:02:51]} Bb3 {[%emt 0:00:09]} 36. Qd2 {[%emt 0:02:29]} Bxd1 {[%emt 0:00:04]} 37. Qxd1 {[%emt 0:00:06]} Bxd4 {[%emt 0:00:18]} 38. Qe2 {[%emt 0:00:35]} Bxb2 {[%emt 0:00:24]} 39. Qxb2 {[%emt 0:00:06]} Ne5 {[%emt 0:01:00]} 40. Ne3 {[%emt 0:00:44]} Nc4 {[%emt 0:01:04]} 41. Nxc4 {[%emt 0:00:41]} bxc4 {[%emt 0:00:03]} 42. Qb4 {[%emt 0:00:29]} Qc6 {[%emt 0:03:58]} 43. h4 {[%emt 0:07:22]} c3 {[%emt 0:02:35]} 44. Qe7+ {[%emt 0:00:27]} Kg8 {[%emt 0:00:10]} 45. Qd8+ {[%emt 0:02:40]} Kf7 {[%emt 0:00:04]} 46. Qh8 {[%emt 0:00:27]} c2 {[%emt 0:00:04]} 47. Qxh7+ {[%emt 0:00:05]} Kf8 {[%emt 0:00:05]} 48. Qh8+ {[%emt 0:02:44]} Ke7 {[%emt 0:00:07]} 49. Qg7+ {[%emt 0:00:04]} Kd8 {[%emt 0:00:07]} 50. Qf8+ {[%emt 0:00:20]} Kc7 {[%emt 0:00:05]} 51. Qe7+ {[%emt 0:00:20]} Kb8 {[%emt 0:01:55]} 52. Qd8+ {[%emt 0:01:47]} Ka7 {[%emt 0:01:58]} 53. Qa5+ {[%emt 0:00:23]} Kb7 {[%emt 0:00:03]} 54. Qb4+ {[%emt 0:00:10]} Ka6 {[%emt 0:00:04]} 0-1